bitfinex-derivatives/quotes_SOLF0:USTF0_20220110
["timestamp","ask_amount","ask_price","bid_price","bid_amount"]
[1641801837643,62.41858,142.85,142.8,39.45399638]
[1641801837843,62.41858,142.85,142.76,59.18099456]
[1641801838044,62.41858,142.85,142.76,1.75]
[1641801838746,62.41858,142.85,142.75,69.0951301]
[1641801839047,34.75379,142.85,142.75,69.0951301]
[1641801839252,34.75379,142.85,142.77,2.38983837]
[1641801839448,34.75379,142.85,142.77,9.34283837]
[1641801840249,27.66479,142.85,142.78,2.38983837]
[1641801840448,27.66479,142.89,142.78,2.38983837]
[1641801840647,27.66479,142.89,142.79,1.75]
[1641801840848,34.96,142.93,142.79,1.75]
[1641801841047,3.96269962,142.88,142.79,1.75]
[1641801841649,27.66479,142.89,142.79,29.41479]
[1641801841951,27.66479,142.89,142.8,2.38983837]
[1641801842150,3.96269962,142.88,142.81,1.75]
[1641801843854,3.96269962,142.88,142.8,1.75]
[1641801844055,3.96269962,142.88,142.79,35.01711247]
[1641801844255,3.96269962,142.88,142.79,27.66479]
[1641801844556,3.96269962,142.88,142.76,1.75]
[1641801844755,10.57369962,142.88,142.76,1.75]
[1641801844954,10.57369962,142.88,142.76,7.353465]
[1641801845354,3.96269962,142.87,142.77,2.38530399]
[1641801845755,27.66479,142.8,142.77,2.38530399]
[1641801846157,27.66479,142.8,142.73,1.75]
[1641801846355,27.66479,142.8,142.72,35.02000326]
[1641801847259,27.66479,142.8,142.73,2.38403113]
[1641801847457,27.66479,142.8,142.73,3.75091892]
[1641801848057,3.96525827,142.79,142.74,1.36688779]
[1641801848357,13.28125827,142.79,142.74,3.75091892]
[1641801848859,3.96525827,142.78,142.75,1.36688779]
[1641801849661,27.66479,142.77,142.75,1.36688779]
[1641801849860,27.66479,142.77,142.69,27.66479]
[1641801850061,27.66479,142.77,142.76,1.36688779]
[1641801850660,27.66479,142.77,142.7,1.36688779]
[1641801850960,27.66479,142.8,142.7,10.12017934]
[1641801851261,68.9141,142.86,142.73,7.00206561]
[1641801851460,68.9141,142.86,142.74,1.75]
[1641801851660,27.66479,142.83,142.75,27.66479]
[1641801852261,3.96454468,142.82,142.76,1.36688779]
[1641801854664,27.66479,142.83,142.77,1.75]
[1641801855068,27.66479,142.83,142.78,1.36688779]
[1641801855865,27.66479,142.83,142.77,1.36688779]
[1641801856568,27.66479,142.83,142.76,1.36688779]
[1641801856766,27.66479,142.83,142.77,1.75]
[1641801856967,27.66479,142.83,142.78,1.36688779]
[1641801857369,27.66479,142.83,142.77,1.36688779]
[1641801857767,27.66479,142.83,142.76,1.36688779]
[1641801858868,27.66479,142.83,142.77,2.39014083]
[1641801859469,27.66479,142.83,142.78,1.36688779]
[1641801859672,27.66479,142.83,142.78,3.11688779]
[1641801859872,32.3515,142.88,142.78,3.11688779]
[1641801860070,28.01316619,142.89,142.78,3.11688779]
[1641801860269,3.96360066,142.87,142.79,1.36688779]
[1641801860471,3.96360066,142.87,142.79,3.75702862]
[1641801860670,3.96360066,142.88,142.79,3.75702862]
[1641801861070,3.96360066,142.88,142.8,1.36688779]
[1641801861471,3.96360066,142.88,142.8,3.75702862]
[1641801861871,31.62839066,142.88,142.81,1.36688779]
[1641801862170,31.62839066,142.88,142.81,3.75702862]
[1641801862371,3.96360066,142.87,142.81,3.75702862]
[1641801862971,3.96360066,142.87,142.82,1.36688779]
[1641801863271,3.96360066,142.87,142.82,3.75702862]
[1641801863871,3.96360066,142.87,142.83,2.39014083]
[1641801864070,3.96360066,142.87,142.83,3.75702862]
[1641801864471,3.96360066,142.87,142.84,1.36688779]
[1641801864873,3.96360066,142.87,142.84,3.75702862]
[1641801865472,3.96360066,142.87,142.85,1.36688779]
[1641801866171,3.96360066,142.87,142.83,1.36688779]
[1641801866371,10.67360066,142.87,142.83,1.36688779]
[1641801866572,10.67360066,142.87,142.84,2.40834108]
[1641801867074,3.96360066,142.86,142.85,1.36688779]
[1641801868078,3.96360066,142.87,142.84,1.36688779]
[1641801868278,3.96360066,142.87,142.85,2.40834108]
[1641801868780,3.96360066,142.87,142.86,1.36688779]
[1641801869481,3.96360066,142.87,142.82,9.84088779]
[1641801869879,3.96360066,142.87,142.83,1.36688779]
[1641801870581,3.96360066,142.87,142.84,2.40840165]
[1641801871182,3.96360066,142.87,142.85,1.36688779]
[1641801872586,3.96360066,142.87,142.83,1.36688779]
[1641801873386,3.96360066,142.87,142.82,1.36688779]
[1641801873786,3.96360066,142.87,142.84,2.40907953]
[1641801874287,3.96360066,142.87,142.85,1.36688779]
[1641801875487,3.96360066,142.87,142.84,1.36688779]
[1641801875688,3.96360066,142.87,142.86,1.36688779]
[1641801876087,3.96360066,142.87,142.83,1.36688779]
[1641801876589,3.96360066,142.87,142.84,2.40867806]
[1641801876988,27.66479,142.88,142.85,1.36688779]
[1641801878488,27.66479,142.88,142.86,2.40867806]
[1641801879191,27.66479,142.88,142.87,1.36688779]
[1641801879590,31.627825,142.88,142.87,1.36688779]
[1641801879789,31.627825,142.88,142.86,2.40867806]
[1641801879989,37.423825,142.88,142.87,2.40867806]
[1641801880189,37.423825,142.88,142.83,14.75705243]
[1641801880489,33.46079,142.88,142.83,14.75705243]
[1641801880690,33.46079,142.88,142.82,14.75705243]
[1641801881089,3.96345468,142.87,142.83,1.07863654]
[1641801881589,3.96345468,142.87,142.83,15.83568897]
[1641801881990,3.96345468,142.87,142.84,1.07863654]
[1641801887796,3.96345468,142.87,142.84,15.83568897]
[1641801888198,3.96345468,142.87,142.85,1.07863654]
[1641801889002,3.96345468,142.87,142.84,3.654e-05]
[1641801890101,27.66479,142.85,142.84,3.654e-05]
[1641801890301,36.70279,142.85,142.84,3.654e-05]
[1641801891001,36.70279,142.85,142.83,14.75708897]
[1641801891402,36.70279,142.85,142.84,3.654e-05]
[1641801892706,40.66668574,142.85,142.83,3.654e-05]
[1641801893106,36.70279,142.85,142.83,3.654e-05]
[1641801893407,36.70279,142.85,142.83,14.75708897]
[1641801894110,9.038,142.85,142.84,3.654e-05]
[1641801894310,27.66479,142.88,142.84,3.654e-05]
[1641801894913,27.66479,142.88,142.85,14.75705243]
[1641801895314,27.66479,142.88,142.86,3.654e-05]
[1641801895716,27.66479,142.88,142.84,8.897e-05]
[1641801895915,3.96433812,142.87,142.84,8.897e-05]
[1641801896115,27.66479,142.85,142.84,8.897e-05]
[1641801896615,27.66479,142.85,142.76,63.76147448]
[1641801897116,3.96474075,142.84,142.79,0.85337127]
[1641801897517,3.96474075,142.84,142.79,10.54173581]
[1641801898121,3.96474075,142.84,142.8,0.85337127]
[1641801898520,3.96474075,142.84,142.77,0.85337127]
[1641801898921,3.96474075,142.84,142.77,10.54173581]
[1641801899418,3.96474075,142.84,142.78,0.85337127]
[1641801908329,27.66479,142.81,142.78,0.85337127]
[1641801909130,27.66479,142.85,142.78,0.85337127]
[1641801909531,3.96463822,142.84,142.78,0.85337127]
[1641801909933,3.96463822,142.84,142.77,0.85337127]
[1641801912336,27.66479,142.82,142.77,0.85337127]
[1641801913638,34.34979,142.82,142.77,0.85337127]
[1641801913839,3.9650153,142.81,142.77,0.85337127]
[1641801914439,27.66479,142.79,142.77,0.85337127]
[1641801914639,34.34179,142.79,142.77,0.85337127]
[1641801914838,34.34179,142.79,142.76,0.85337127]
[1641801917443,3.96616856,142.78,142.76,0.85337127]
[1641801917744,3.96616856,142.78,142.72,0.85337127]
[1641801918443,27.66479,142.75,142.72,0.85337127]
[1641801918643,35.07679,142.75,142.72,0.85337127]
[1641801919444,3.9671009,142.74,142.71,0.85337127]
[1641801919946,3.9671009,142.74,142.68,39.45399638]
[1641801920147,3.9671009,142.74,142.69,9.72238877]
[1641801920348,27.66479,142.7,142.69,9.72238877]
[1641801920551,33.81079,142.7,142.69,9.72238877]
[1641801921147,33.81079,142.7,142.66,39.45399638]
[1641801921348,33.81079,142.7,142.69,0.79360592]
[1641801921749,33.81079,142.7,142.66,0.79360592]
[1641801922650,27.66479,142.67,142.64,0.79360592]
[1641801923251,27.66479,142.67,142.65,2.40183464]
[1641801923650,27.66479,142.67,142.66,0.79360592]
[1641801924454,27.66479,142.7,142.63,0.79360592]
[1641801925454,27.66479,142.7,142.62,0.79360592]
[1641801925653,27.66479,142.7,142.64,2.39941017]
[1641801926152,27.66479,142.7,142.65,0.79360592]
[1641801926653,27.66479,142.7,142.64,0.79360592]
[1641801927055,27.66479,142.7,142.65,2.39941017]
[1641801927456,27.66479,142.7,142.66,0.79360592]
[1641801929259,27.66479,142.7,142.63,0.79360592]
[1641801929559,33.66179,142.7,142.63,0.79360592]
[1641801930263,3.96841269,142.69,142.63,0.79360592]
[1641801932165,10.54841269,142.69,142.62,0.79360592]
[1641801932565,3.96841269,142.68,142.62,0.79360592]
[1641801934768,3.96841269,142.68,142.6,0.79360592]
[1641801936073,3.96841269,142.69,142.61,2.39576011]
[1641801936571,3.96841269,142.69,142.62,0.79360592]
[1641801937972,3.96841269,142.69,142.6,0.79360592]
[1641801938173,11.37241269,142.69,142.6,0.79360592]
[1641801938975,3.96841269,142.68,142.61,2.39837387]
[1641801939377,3.96841269,142.68,142.62,0.79360592]
[1641801941180,3.96841269,142.68,142.6,0.79360592]
[1641801941579,3.96841269,142.68,142.63,0.79360592]
[1641801941978,3.96841269,142.68,142.61,0.79360592]
[1641801942478,3.96841269,142.68,142.6,0.79360592]
[1641801942679,27.66479,142.65,142.62,0.79360592]
[1641801942979,33.74179,142.65,142.62,0.79360592]
[1641801943179,33.74179,142.65,142.61,2.40503061]
[1641801943580,3.96955279,142.64,142.62,0.79360592]
[1641801944482,3.96955279,142.64,142.58,0.79360592]
[1641801945786,3.96955279,142.64,142.59,2.40783019]
[1641801946385,3.96955279,142.64,142.6,0.79360592]
[1641801947486,3.96955279,142.64,142.61,2.40783019]
[1641801947886,3.96955279,142.64,142.62,0.79360592]
[1641801949487,3.96955279,142.64,142.6,0.79360592]
[1641801950488,3.96955279,142.64,142.61,2.41174962]
[1641801951189,3.96955279,142.64,142.62,0.79360592]
[1641801952292,27.66479,142.65,142.59,14.73864875]
[1641801952694,27.66479,142.65,142.59,42.40343875]
[1641801952894,27.66479,142.69,142.6,16.49064875]
[1641801953695,27.66479,142.69,142.61,17.15034089]
[1641801954599,27.66479,142.69,142.62,14.73864875]
[1641801957398,27.66479,142.69,142.61,12.10939373]
[1641801957399,27.66479,142.69,142.61,26.84804248]
[1641801957800,3.96884204,142.68,142.63,0.79376841]
[1641801957998,3.96884204,142.68,142.63,8.02476841]
[1641801958199,3.96884204,142.68,142.63,22.76341716]
[1641801958399,3.96884204,142.68,142.63,21.96964875]
[1641801958598,3.96884204,142.68,142.64,0.79376841]
[1641801959701,3.96884204,142.68,142.65,2.41169214]
[1641801960299,3.96884204,142.68,142.66,0.79376841]
[1641801961300,3.96884204,142.68,142.67,2.41169214]
[1641801961999,3.96884204,142.68,142.67,3.20546055]
[1641801962500,3.96884204,142.68,142.67,0.79376841]
[1641801962904,3.96884204,142.68,142.65,0.79376841]
[1641801963102,10.45484204,142.68,142.65,0.79376841]
[1641801963301,10.45484204,142.68,142.64,0.79376841]
[1641801963701,3.96884204,142.67,142.64,0.79376841]
[1641801964102,3.96884204,142.67,142.63,0.79376841]
[1641801964303,3.96884204,142.67,142.65,2.41577979]
[1641801964906,3.96884204,142.67,142.66,0.79376841]
[1641801965908,3.96884204,142.67,142.65,0.79376841]
[1641801966609,3.96884204,142.67,142.62,0.79376841]
[1641801966809,27.66479,142.66,142.62,0.79376841]
[1641801967518,3.96884204,142.65,142.63,2.41650381]
[1641801967912,13.37684204,142.65,142.64,0.79376841]
[1641801968314,9.408,142.65,142.64,0.79376841]
[1641801968715,9.408,142.65,142.64,3.21027222]
[1641801973618,27.66479,142.66,142.64,3.21027222]
[1641801974117,27.66479,142.66,142.65,2.41650381]
[1641801974316,27.66479,142.66,142.65,3.21027222]
[1641801979721,34.73179,142.66,142.65,3.21027222]
[1641801989636,38.70142425,142.66,142.65,3.21027222]
[1641801997449,38.70142425,142.66,142.62,14.73864875]
[1641801997646,38.70142425,142.66,142.61,9.69770159]
[1641801998046,34.73179,142.66,142.61,9.69770159]
[1641801998547,34.73179,142.66,142.58,9.69770159]
[1641801998847,27.66479,142.59,142.58,9.69770159]
[1641801999049,35.61379,142.59,142.58,9.69770159]
[1641801999450,35.61379,142.59,142.54,54.15152749]
[1641801999649,39.58505502,142.59,142.54,54.15152749]
[1641802000152,35.61379,142.59,142.54,54.15152749]
[1641802000550,3.97134138,142.58,142.51,86.52289041]
[1641802000951,27.66479,142.56,142.51,50.95429041]
[1641802001152,33.51579,142.56,142.51,49.20229041]
[1641802001553,3.97134138,142.55,142.51,49.20229041]
[1641802001952,3.97134138,142.55,142.52,9.74829403]
[1641802002953,3.97134138,142.55,142.5,27.66479]
[1641802005957,3.97134138,142.55,142.5,34.67790452]
[1641802006356,27.66479,142.56,142.5,34.67790452]
[1641802006656,27.66479,142.56,142.51,1.754]
[1641802008259,27.66479,142.59,142.51,1.754]
[1641802009059,3.97171018,142.58,142.51,1.754]
[1641802011965,3.97171018,142.58,142.51,7.36736408]
[1641802012162,3.97171018,142.58,142.53,12.62422056]
[1641802012363,27.66479,142.59,142.54,1.752]
[1641802012565,27.66479,142.62,142.54,1.752]
[1641802012966,27.66479,142.62,142.54,29.41679]
[1641802013166,3.97112353,142.61,142.54,29.41679]
[1641802013767,3.97112353,142.61,142.55,5.61183249]
[1641802013967,3.97112353,142.61,142.56,1.752]
[1641802014370,3.97112353,142.61,142.57,0.79414197]
[1641802016075,3.97112353,142.61,142.55,0.79414197]
[1641802016274,12.18112353,142.61,142.55,0.79414197]
[1641802016875,3.97112353,142.6,142.55,0.79414197]
[1641802021078,27.66479,142.59,142.55,0.79414197]
[1641802021278,27.66479,142.59,142.55,2.54614197]
[1641802021777,27.66479,142.59,142.56,0.79414197]
[1641802024281,27.66479,142.62,142.56,0.79414197]
[1641802024484,27.66479,142.62,142.57,1.752]
[1641802024684,3.97114063,142.61,142.57,1.752]
[1641802024883,3.97114063,142.61,142.57,7.36302592]
[1641802025182,3.97114063,142.61,142.58,28.45893197]
[1641802025583,3.97114063,142.65,142.59,0.79414197]
[1641802025983,3.97114063,142.65,142.6,7.00819959]
[1641802026183,3.97114063,142.65,142.61,1.752]
[1641802026482,35.4829,142.71,142.61,8.15566049]
[1641802026483,39.45404063,142.71,142.61,8.15566049]
[1641802026683,39.45404063,142.71,142.62,33.9021]
[1641802026882,39.45404063,142.71,142.63,1.752]
[1641802026883,3.97114063,142.7,142.63,1.752]
[1641802027085,31.63593063,142.7,142.63,1.752]
[1641802027284,40.72493063,142.7,142.63,1.752]
[1641802027485,40.72493063,142.7,142.64,0.79414197]
[1641802027885,3.97114063,142.69,142.64,0.79414197]
[1641802030287,10.04414063,142.69,142.64,0.79414197]
[1641802030586,3.97114063,142.68,142.64,0.79414197]
[1641802031388,3.97114063,142.68,142.63,0.79414197]
[1641802032387,3.97114063,142.69,142.63,0.79414197]
[1641802037893,27.66479,142.66,142.63,0.79414197]
[1641802038495,3.97114063,142.65,142.63,0.79414197]
[1641802038797,3.97114063,142.65,142.62,0.79414197]
[1641802040900,3.97114063,142.65,142.63,5.60857739]
[1641802041099,3.97114063,142.65,142.64,1.752]
[1641802041407,27.66479,142.66,142.64,2.54614197]
[1641802041899,27.66479,142.66,142.65,0.79414197]
[1641802042500,31.63304946,142.66,142.65,0.79414197]
[1641802045401,31.63304946,142.66,142.64,0.79414197]
[1641802045803,31.63304946,142.66,142.65,0.79414197]
[1641802046203,31.63304946,142.66,142.64,2.54614197]
[1641802046403,9.63125946,142.66,142.64,0.79414197]
[1641802046605,5.663,142.66,142.65,0.79414197]
[1641802047104,5.663,142.66,142.64,0.79414197]
[1641802047607,27.66479,142.7,142.64,0.79414197]
[1641802049006,27.66479,142.7,142.64,2.54614197]
[1641802049807,27.66479,142.7,142.65,0.79414197]
[1641802050212,27.66479,142.7,142.65,3.20505026]
[1641802050610,27.66479,142.7,142.66,0.79414197]
[1641802051712,27.66479,142.7,142.65,0.79414197]
[1641802053113,27.66479,142.7,142.66,1.752]
[1641802053815,27.66479,142.7,142.67,0.79414197]
[1641802054716,27.66479,142.7,142.66,0.79414197]
[1641802055115,2.53568028,142.69,142.66,0.79414197]
[1641802055816,27.66479,142.7,142.67,2.41717979]
[1641802056516,27.66479,142.7,142.68,0.79414197]
[1641802057117,27.66479,142.7,142.67,2.41717979]
[1641802058019,2.53545173,142.69,142.65,1.752]
[1641802058420,2.53545173,142.69,142.66,3.21055768]
[1641802058923,2.53545173,142.69,142.67,0.79355887]
[1641802059724,27.66479,142.7,142.67,0.79355887]
[1641802061724,3.96779606,142.69,142.67,0.79355887]
[1641802064730,10.62979606,142.69,142.67,0.79355887]
[1641802065331,3.96779606,142.68,142.64,0.79355887]
[1641802065731,3.96779606,142.68,142.65,2.41732044]
[1641802066131,3.96779606,142.68,142.66,0.79355887]
[1641802067033,3.96779606,142.69,142.66,0.79355887]
[1641802067836,3.96779606,142.69,142.64,5.60829191]
[1641802067837,3.96779606,142.69,142.65,1.752]
[1641802068034,3.96779606,142.69,142.64,6.40185078]
[1641802068235,3.96779606,142.69,142.66,0.79355887]
[1641802068636,3.96779606,142.69,142.67,2.41733697]
[1641802069436,3.96779606,142.69,142.66,2.41733697]
[1641802069636,12.19779606,142.69,142.66,2.41733697]
[1641802070137,12.19779606,142.69,142.67,0.79356553]
[1641802070537,3.96779606,142.68,142.67,0.79356553]
[1641802071140,3.96779606,142.68,142.66,0.79356553]
[1641802071944,3.96779606,142.68,142.64,0.79356553]
[1641802072545,3.96779606,142.68,142.65,2.4174877]
[1641802072946,3.96779606,142.68,142.66,0.79356553]
[1641802073145,27.66479,142.67,142.66,0.79356553]
[1641802073746,31.63258606,142.67,142.66,0.79356553]
[1641802074046,31.63258606,142.67,142.66,3.21105323]
[1641802075953,37.58758606,142.67,142.63,16.556892]
[1641802076154,37.58758606,142.67,142.63,1.585692]
[1641802076455,33.61979,142.67,142.62,11.33391658]
[1641802076652,33.61979,142.67,142.62,7.06941658]
[1641802077355,3.96944524,142.66,142.58,39.45399638]
[1641802077554,27.66479,142.62,142.57,1.752]
[1641802077754,33.65479,142.62,142.59,0.79390655]
[1641802078354,3.96944524,142.61,142.58,0.79390655]
[1641802078655,3.96944524,142.61,142.55,0.79390655]
[1641802078854,3.96944524,142.61,142.56,1.752]
[1641802079053,3.96944524,142.61,142.55,2.54590655]
[1641802079955,3.96944524,142.61,142.56,0.79390655]
[1641802081258,3.96944524,142.61,142.57,1.752]
[1641802081857,3.96944524,142.61,142.58,0.79390655]
[1641802082958,3.96944524,142.61,142.55,0.79390655]
[1641802083359,3.96944524,142.61,142.59,0.79390655]
[1641802083860,3.96944524,142.61,142.55,0.79390655]
[1641802084159,3.96944524,142.61,142.56,9.476]
[1641802085362,70.516,142.66,142.56,15.08735326]
[1641802085564,62.18189,142.66,142.56,42.75214326]
[1641802086364,3.96896174,142.65,142.56,42.75214326]
[1641802086565,3.96896174,142.65,142.58,5.61078083]
[1641802086764,3.96896174,142.65,142.61,5.60963655]
[1641802086966,3.96896174,142.67,142.62,1.752]
[1641802090270,3.96896174,142.67,142.6,38.9696]
[1641802091971,27.66479,142.65,142.6,38.9696]
[1641802093675,27.66479,142.65,142.6,44.57960518]
[1641802093874,27.66479,142.65,142.62,5.60920427]
[1641802094075,27.66479,142.65,142.63,1.752]
[1641802097979,27.66479,142.65,142.6,38.9696]
[1641802098178,3.96881423,142.64,142.58,1.752]
[1641802098379,3.96881423,142.64,142.58,37.2527]
[1641802099078,3.96881423,142.64,142.59,1.17846599]
[1641802104087,27.66479,142.61,142.59,1.17846599]
[1641802104289,36.00579,142.61,142.59,1.17846599]
[1641802104687,3.96881423,142.6,142.57,1.17846599]
[1641802105287,3.96881423,142.6,142.52,37.0419]
[1641802105288,3.96881423,142.6,142.56,1.17846599]
[1641802105586,39.03311423,142.6,142.53,1.17846599]
[1641802105987,3.96881423,142.59,142.53,1.17846599]
[1641802107088,3.96881423,142.59,142.53,25.7287049]
[1641802107790,3.96881423,142.59,142.54,1.17846599]
[1641802108694,3.96881423,142.59,142.53,1.17846599]
[1641802110799,27.66479,142.57,142.53,1.17846599]
[1641802110998,33.50979,142.57,142.53,1.17846599]
[1641802111398,3.96881423,142.56,142.53,1.17846599]
[1641802112399,3.96881423,142.56,142.52,1.17846599]
[1641802113298,31.63360423,142.56,142.51,1.17846599]
[1641802113998,3.96881423,142.55,142.51,1.17846599]
[1641802115999,27.66479,142.56,142.51,1.17846599]
[1641802116198,27.66479,142.56,142.51,2.93046599]
[1641802116701,27.66479,142.56,142.52,2.403898]
[1641802116999,3.97162274,142.55,142.52,3.58236399]
[1641802117401,3.97162274,142.55,142.53,1.17846599]
[1641802117802,34.76579,142.56,142.52,1.17846599]
[1641802119104,27.66479,142.56,142.52,1.17846599]
[1641802119305,27.66479,142.58,142.52,1.17846599]
[1641802119503,27.66479,142.58,142.53,1.752]
[1641802119905,27.66479,142.58,142.54,2.40339212]
[1641802120107,3.9711802,142.57,142.54,3.58185811]
[1641802120506,27.66479,142.58,142.55,1.17846599]
[1641802120706,27.66479,142.58,142.56,1.752]
[1641802121109,27.66479,142.58,142.57,1.17846599]
[1641802121907,27.66479,142.58,142.55,1.752]
[1641802121908,27.66479,142.58,142.56,1.17846599]
[1641802124911,35.0643,142.6,142.56,1.17846599]
[1641802125111,7.179,142.62,142.56,1.17846599]
[1641802125315,3.97088946,142.59,142.56,1.17846599]
[1641802125712,27.66479,142.58,142.56,1.17846599]
[1641802126716,36.6286,142.64,142.57,5.61119308]
[1641802126916,36.6286,142.64,142.58,1.752]
[1641802127417,3.97004738,142.63,142.59,1.17846599]
[1641802127619,3.97004738,142.63,142.6,1.752]
[1641802128417,3.97004738,142.63,142.61,1.17846599]
[1641802129218,3.97004738,142.63,142.6,1.17846599]
[1641802133621,12.77304738,142.63,142.6,1.17846599]
[1641802134220,27.66479,142.61,142.6,1.17846599]
[1641802134422,27.66479,142.61,142.59,1.17846599]
[1641802134920,31.63483738,142.61,142.6,1.17846599]
[1641802135122,27.66479,142.61,142.6,1.17846599]
[1641802135521,27.66479,142.61,142.57,1.17846599]
[1641802136423,27.66479,142.61,142.58,2.41005222]
[1641802137024,27.66479,142.61,142.59,1.17846599]
[1641802138329,27.66479,142.61,142.56,1.17846599]
[1641802139530,27.66479,142.61,142.57,2.40997205]
[1641802140130,27.66479,142.61,142.58,1.17846599]
[1641802141732,27.66479,142.61,142.56,1.17846599]
[1641802142532,27.66479,142.58,142.54,14.82655393]
[1641802142732,33.49779,142.58,142.54,14.82655393]
[1641802143438,33.49779,142.58,142.52,2.41088185]
[1641802144035,33.49779,142.58,142.53,0.93386717]
[1641802144436,61.16258,142.58,142.53,0.93386717]
[1641802145537,61.16258,142.58,142.52,0.93386717]
[1641802145837,61.16258,142.58,142.51,0.93386717]
[1641802146238,61.16258,142.58,142.53,2.41139019]
[1641802146842,61.16258,142.58,142.54,0.93386717]
[1641802147644,61.16258,142.58,142.53,0.93386717]
[1641802148845,5.833,142.58,142.53,0.93386717]
[1641802149046,35.0613,142.6,142.51,0.93386717]
[1641802149247,35.0613,142.6,142.52,2.41168862]
[1641802149846,27.66479,142.56,142.52,2.41168862]
[1641802150047,27.66479,142.58,142.53,0.93386717]
[1641802150247,14.82655393,142.62,142.53,0.93386717]
[1641802150446,49.95295393,142.62,142.54,5.61234458]
[1641802150649,49.95295393,142.62,142.55,1.752]
[1641802150848,3.970867,142.61,142.55,2.68586717]
[1641802151251,3.970867,142.61,142.56,0.93386717]
[1641802151650,3.970867,142.61,142.56,3.34555579]
[1641802152050,3.970867,142.61,142.57,0.93386717]
[1641802152450,3.970867,142.61,142.57,3.34555579]
[1641802153050,3.970867,142.61,142.58,0.93386717]
[1641802153852,3.970867,142.61,142.56,0.93386717]
[1641802154052,3.970867,142.62,142.56,0.93386717]
[1641802154352,3.970867,142.6,142.56,0.93386717]
[1641802154954,3.970867,142.62,142.56,0.93386717]
[1641802156253,27.66479,142.58,142.56,0.93386717]
[1641802157055,3.970867,142.57,142.52,0.93386717]
[1641802158562,3.970867,142.57,142.53,2.41051511]
[1641802159061,3.970867,142.57,142.54,0.93386717]
[1641802161560,3.970867,142.57,142.52,0.93386717]
[1641802161761,3.970867,142.57,142.52,2.68586717]
[1641802161959,3.970867,142.57,142.53,2.41140544]
[1641802162363,3.970867,142.57,142.54,0.93386717]
[1641802164263,3.970867,142.57,142.52,9.93386717]
[1641802164462,3.970867,142.57,142.55,0.93386717]
[1641802164762,3.970867,142.57,142.53,0.93386717]
[1641802165462,3.970867,142.57,142.54,2.41282904]
[1641802166063,3.970867,142.57,142.55,0.93386717]
[1641802166763,31.635657,142.57,142.55,0.93386717]
[1641802166963,27.66479,142.57,142.55,0.93386717]
[1641802167363,3.970867,142.58,142.55,0.93386717]
[1641802167563,3.970867,142.56,142.52,0.93386717]
[1641802168064,3.970867,142.58,142.52,0.93386717]
[1641802168565,3.970867,142.58,142.53,2.41336371]
[1641802168765,3.970867,142.58,142.54,1.752]
[1641802168964,3.970867,142.58,142.54,2.68586717]
[1641802169367,42.49134393,142.62,142.55,0.93386717]
[1641802169368,3.970867,142.61,142.55,0.93386717]
[1641802169565,3.970867,142.61,142.56,1.752]
[1641802170065,3.970867,142.61,142.56,4.16536371]
[1641802170267,3.970867,142.61,142.57,0.93386717]
[1641802171567,3.970867,142.61,142.55,0.93386717]
[1641802171767,12.454867,142.61,142.55,0.93386717]
[1641802172368,6.50625551,142.6,142.55,0.93386717]
[1641802172768,27.66479,142.57,142.55,0.93386717]
[1641802172969,35.56879,142.57,142.55,0.93386717]
[1641802173269,35.56879,142.57,142.52,16.57855393]
[1641802173270,3.970867,142.56,142.53,0.93386717]
[1641802174370,3.970867,142.56,142.54,2.41492318]
[1641802175673,3.970867,142.56,142.55,0.93386717]
[1641802176574,3.970867,142.56,142.55,3.34879035]
[1641802178177,3.970867,142.58,142.55,3.34879035]
[1641802178476,3.970867,142.56,142.55,3.34879035]
[1641802178678,3.970867,142.56,142.55,0.93386717]
[1641802178877,3.970867,142.58,142.55,0.93386717]
[1641802179077,27.66479,142.57,142.55,0.93386717]
[1641802179378,27.66479,142.57,142.53,0.93386717]
[1641802179778,3.970867,142.56,142.53,0.93386717]
[1641802183483,3.970867,142.56,142.51,0.93386717]
[1641802185087,27.66479,142.54,142.51,0.93386717]
[1641802185287,36.84879,142.54,142.51,0.93386717]
[1641802185688,3.970867,142.53,142.51,0.93386717]
[1641802186590,3.970867,142.53,142.5,0.93386717]
[1641802187788,36.84879,142.54,142.5,0.93386717]
[1641802188288,9.184,142.54,142.5,0.93386717]
[1641802188790,9.184,142.54,142.5,15.7604211]
[1641802188991,35.9188,142.59,142.5,15.7604211]
[1641802189392,27.66479,142.55,142.5,15.7604211]
[1641802189592,6.50770372,142.58,142.51,2.68786717]
[1641802189992,3.97114431,142.57,142.52,0.93386717]
[1641802190193,3.97114431,142.57,142.53,1.752]
[1641802190794,3.97114431,142.57,142.52,15.7604211]
[1641802190994,7.552,142.57,142.54,0.93386717]